[Event "10th Iberoamericano-ch 2024"]
[Site "Linares"]
[Date "2024.10.01"]
[Round "9.19"]
[White "Labiano Hernandez, Juan"]
[Black "Garzon Zapatanga, Christopher Leonel"]
[Result "1-0"]
[Annotator "RC"]
[ECO "E71"]
[WhiteElo "2398"]
[BlackElo "2216"]
[PlyCount "63"]
[EventDate "2024.09.25"]
[EventType "swiss"]
[EventCountry "ESP"]
[SourceTitle "playchess.com"]
[Source "ChessBase"]
[SourceQuality "1"]
[TimeControl "5400+30"]

1. d4 {[%emt 0:00:08]} Nf6 {[%emt 0:02:07]} 2. c4 {[%emt 0:00:03]} g6 {[%emt 0:00:45]} 3. Nc3 {[%emt 0:00:06]} Bg7 {[%emt 0:00:09]} 4. e4 {[%emt 0:00:06]} d6 {[%emt 0:00:04]} 5. h3 {[%emt 0:00:53]} O-O {[%emt 0:01:41]} 6. Be3 {[%emt 0:00:05]} e5 {[%emt 0:00:40]} 7. d5 {[%emt 0:00:05]} Nbd7 {[%emt 0:01:59]} 8. g4 {[%emt 0:07:28]} Nc5 {[%emt 0:01:09]} 9. Qc2 {[%emt 0:00:02]} a5 {[%emt 0:00:12]} 10. Nf3 {[%emt 0:03:25]} Ne8 {[%emt 0:02:19]} 11. O-O-O {[%emt 0:14:35]} f5 {[%emt 0:06:16]} 12. gxf5 {[%emt 0:01:13]} gxf5 {[%emt 0:00:05]} 13. h4 {[%emt 0:03:43]} fxe4 {[%emt 0:14:07]} 14. Ng5 {[%emt 0:00:06]} Bg4 {[%emt 0:03:25]} 15. Rd2 {[%emt 0:06:46]} Nd3+ {[%emt 0:02:08]} 16. Kb1 {[%emt 0:02:58]} Ne1 {[%emt 0:01:18]} 17. Qb3 {[%emt 0:07:00]} Nf3 {[%emt 0:00:12]} 18. Rc2 {[%emt 0:04:09]} Nf6 {[%emt 0:17:02]} 19. Ncxe4 {[%emt 0:04:11]} Nxe4 {[%emt 0:00:38]} 20. Nxe4 {[%emt 0:00:02]} Ne1 {[%emt 0:02:00]} 21. Rc1 {[%emt 0:07:07]} Bf3 {[%emt 0:01:22]} 22. Ng5 {[%emt 0:00:06]} Bxh1 {[%emt 0:00:36]} 23. Rxe1 {[%emt 0:00:01]} Qf6 {[%emt 0:01:40]} 24. Bd3 {[%emt 0:02:00]} e4 {[%emt 0:00:22]} 25. Bc2 Bf3 {[%emt 0:03:10]} 26. Ne6 {[%emt 0:00:42]} a4 {[%emt 0:01:41]} 27. Qa3 {[%emt 0:01:16]} c5 {[%emt 0:03:23]} 28. Rg1 {[%emt 0:10:11]} Rf7 {[%emt 0:00:23]} 29. Bd2 {[%emt 0:00:11]} Be2 {[%emt 0:01:07]} 30. Qc3 {[%emt 0:01:53]} Kh8 {[%emt 0:25:03]} 31. Nxg7 {[%emt 0:04:17]} Qd4 {[%emt 0:00:24]} 32. Ne6 {[%emt 0:01:03]} 1-0

[Event "10th Iberoamericano-ch 2024"]
[Site "Linares"]
[Date "2024.10.01"]
[Round "9.20"]
[White "Iglesias Ferreira, Andres"]
[Black "Horcajuelo Rocamora, Martin"]
[Result "0-1"]
[Annotator "RC"]
[ECO "B96"]
[WhiteElo "2301"]
[BlackElo "2394"]
[PlyCount "42"]
[EventDate "2024.09.25"]
[EventType "swiss"]
[EventCountry "ESP"]
[SourceTitle "playchess.com"]
[Source "ChessBase"]
[SourceQuality "1"]
[TimeControl "5400+30"]

1. e4 {[%emt 0:00:01]} c5 {[%emt 0:00:08]} 2. Nf3 {[%emt 0:00:07]} d6 {[%emt 0:00:06]} 3. d4 {[%emt 0:00:07]} cxd4 {[%emt 0:00:05]} 4. Nxd4 {[%emt 0:00:09]} Nf6 {[%emt 0:00:05]} 5. Nc3 {[%emt 0:00:10]} a6 {[%emt 0:00:06]} 6. Bg5 {[%emt 0:00:11]} e6 {[%emt 0:00:06]} 7. f4 {[%emt 0:00:14]} h6 {[%emt 0:00:06]} 8. Bh4 {[%emt 0:00:14]} Qb6 {[%emt 0:00:07]} 9. a3 {[%emt 0:02:27]} Be7 {[%emt 0:00:21]} 10. Bf2 {[%emt 0:00:10]} Qc7 {[%emt 0:00:06]} 11. Qf3 {[%emt 0:06:03]} Nc6 {[%emt 0:00:08]} 12. Nxc6 {[%emt 0:02:38]} bxc6 {[%emt 0:00:08]} 13. g4 {[%emt 0:02:09]} e5 {[%emt 0:14:01]} 14. f5 {[%emt 0:03:38]} d5 {[%emt 0:05:45]} 15. h4 {[%emt 0:03:43]} d4 {[%emt 0:10:12]} 16. Nd1 {[%emt 0:10:08]} Bb7 {[%emt 0:05:36]} 17. g5 {[%emt 0:06:23]} Nxe4 {[%emt 0:06:55]} 18. Qxe4 {[%emt 0:14:10]} c5 {[%emt 0:01:01]} 19. Qg4 {[%emt 0:00:21]} Bxh1 {[%emt 0:00:11]} 20. Bc4 {[%emt 0:02:31]} hxg5 {[%emt 0:02:46]} 21. hxg5 {[%emt 0:00:16]} Qc6 {[%emt 0:00:09]} 0-1

[Event "10th Iberoamericano-ch 2024"]
[Site "Linares"]
[Date "2024.10.01"]
[Round "9.21"]
[White "Leyva, Hector"]
[Black "Perea Fruet, Lorenzo"]
[Result "1-0"]
[Annotator "RC"]
[ECO "A46"]
[WhiteElo "2296"]
[BlackElo "2411"]
[PlyCount "109"]
[EventDate "2024.09.25"]
[EventType "swiss"]
[EventCountry "ESP"]
[SourceTitle "playchess.com"]
[Source "ChessBase"]
[SourceQuality "1"]
[TimeControl "5400+30"]

1. d4 {[%emt 0:00:52]} Nf6 {[%emt 0:00:05]} 2. Nf3 {[%emt 0:00:06]} d6 {[%emt 0:00:17]} 3. c4 {[%emt 0:00:23]} g6 {[%emt 0:00:22]} 4. Nc3 {[%emt 0:00:09]} Bf5 {[%emt 0:00:04]} 5. g3 {[%emt 0:04:16]} Bg7 {[%emt 0:00:26]} 6. Bg2 {[%emt 0:00:06]} Ne4 {[%emt 0:00:11]} 7. Ng5 {[%emt 0:10:16]} Nxc3 {[%emt 0:01:03]} 8. bxc3 {[%emt 0:00:06]} Nc6 {[%emt 0:06:46]} 9. O-O {[%emt 0:08:46]} h6 {[%emt 0:02:27]} 10. e4 {[%emt 0:08:10]} Bd7 {[%emt 0:01:16]} 11. Nf3 {[%emt 0:00:46]} O-O {[%emt 0:00:42]} 12. Rb1 {[%emt 0:04:36]} b6 {[%emt 0:03:13]} 13. Be3 {[%emt 0:05:29]} Na5 {[%emt 0:03:35]} 14. Qc1 {[%emt 0:03:18]} Kh7 {[%emt 0:01:41]} 15. Nd2 {[%emt 0:00:27]} c5 {[%emt 0:02:31]} 16. d5 {[%emt 0:03:34]} Bc8 {[%emt 0:05:08]} 17. Re1 {[%emt 0:03:44]} e6 {[%emt 0:07:58]} 18. Qc2 {[%emt 0:03:38]} e5 {[%emt 0:03:25]} 19. f4 {[%emt 0:02:50]} Ba6 {[%emt 0:04:26]} 20. Bf1 {[%emt 0:00:09]} exf4 {[%emt 0:00:28]} 21. gxf4 {[%emt 0:00:14]} Qh4 {[%emt 0:01:35]} 22. Bd3 {[%emt 0:02:27]} Rae8 {[%emt 0:01:57]} 23. Kh1 {[%emt 0:06:31]} Kh8 {[%emt 0:09:10]} 24. Rg1 {[%emt 0:00:46]} Bc8 {[%emt 0:02:20]} 25. Rg3 {[%emt 0:00:29]} Bg4 {[%emt 0:04:51]} 26. Rbg1 {[%emt 0:01:29]} f5 {[%emt 0:00:08]} 27. Bf2 {[%emt 0:09:56]} Qh5 {[%emt 0:00:42]} 28. e5 {[%emt 0:02:42]} Kh7 {[%emt 0:05:21]} 29. e6 {[%emt 0:00:59]} Re7 {[%emt 0:02:51]} 30. Be3 {[%emt 0:01:28]} Bf6 {[%emt 0:01:29]} 31. Rxg4 {[%emt 0:02:27]} fxg4 {[%emt 0:00:09]} 32. Ne4 {[%emt 0:00:20]} Rg7 {[%emt 0:04:29]} 33. Ng3 {[%emt 0:04:40]} Qh4 {[%emt 0:02:50]} 34. Bf2 {[%emt 0:01:32]} Rgg8 {[%emt 0:00:06]} 35. Ne4 {[%emt 0:04:03]} Qh5 {[%emt 0:02:27]} 36. Nxd6 {[%emt 0:02:20]} b5 {[%emt 0:05:34]} 37. Bxc5 {[%emt 0:03:27]} Nxc4 {[%emt 0:01:52]} 38. Bxc4 {[%emt 0:00:28]} bxc4 {[%emt 0:00:02]} 39. Qe4 {[%emt 0:00:30]} Rb8 {[%emt 0:00:23]} 40. Nxc4 {[%emt 0:00:42]} Rgc8 {[%emt 0:02:12]} 41. Bb4 {[%emt 0:00:47]} a5 {[%emt 0:00:55]} 42. Nxa5 {[%emt 0:00:14]} Rb5 {[%emt 0:01:35]} 43. d6 {[%emt 0:00:55]} Rxa5 {[%emt 0:02:48]} 44. Qb7+ {[%emt 0:00:42]} Bg7 {[%emt 0:00:15]} 45. Bxa5 {[%emt 0:00:26]} g3 {[%emt 0:02:19]} 46. Qg2 {[%emt 0:00:21]} Qxa5 {[%emt 0:02:25]} 47. d7 {[%emt 0:00:08]} Rxc3 {[%emt 0:01:06]} 48. e7 {[%emt 0:00:15]} Rd3 {[%emt 0:00:15]} 49. e8=Q {[%emt 0:00:15]} Rd2 {[%emt 0:00:02]} 50. Qxg6+ {[%emt 0:01:20]} Kxg6 {[%emt 0:00:08]} 51. Qxg3+ {[%emt 0:00:01]} Kf5 {[%emt 0:00:07]} 52. Qg6+ {[%emt 0:01:05]} Kxf4 {[%emt 0:00:05]} 53. Rg4+ {[%emt 0:00:22]} Ke5 {[%emt 0:00:31]} 54. Qh5+ {[%emt 0:00:06]} Ke6 {[%emt 0:00:11]} 55. Qxa5 {[%emt 0:00:08]} 1-0

[Event "10th Iberoamericano-ch 2024"]
[Site "Linares"]
[Date "2024.10.01"]
[Round "9.22"]
[White "Prado Lobo, Jonas"]
[Black "Buiza Prieto, Eihartze"]
[Result "1/2-1/2"]
[Annotator "RC"]
[ECO "E51"]
[WhiteElo "2381"]
[BlackElo "2056"]
[PlyCount "87"]
[EventDate "2024.09.25"]
[EventType "swiss"]
[EventCountry "ESP"]
[SourceTitle "playchess.com"]
[Source "ChessBase"]
[SourceQuality "1"]
[TimeControl "5400+30"]

1. d4 {[%emt 0:00:04]} d5 {[%emt 0:00:12]} 2. c4 {[%emt 0:00:06]} e6 {[%emt 0:00:22]} 3. Nc3 {[%emt 0:00:07]} Nf6 {[%emt 0:00:09]} 4. Nf3 {[%emt 0:01:51]} Bb4 {[%emt 0:02:38]} 5. e3 {[%emt 0:02:47]} O-O {[%emt 0:01:14]} 6. Bd2 {[%emt 0:00:06]} c5 {[%emt 0:02:55]} 7. a3 {[%emt 0:00:35]} Bxc3 {[%emt 0:05:22]} 8. Bxc3 {[%emt 0:00:05]} Ne4 {[%emt 0:03:26]} 9. Rc1 {[%emt 0:00:18]} cxd4 {[%emt 0:01:28]} 10. Nxd4 {[%emt 0:03:23]} Nxc3 {[%emt 0:03:55]} 11. Rxc3 {[%emt 0:00:32]} dxc4 {[%emt 0:21:33]} 12. Bxc4 {[%emt 0:05:45]} e5 {[%emt 0:00:37]} 13. Nb5 {[%emt 0:00:35]} Qxd1+ {[%emt 0:00:08]} 14. Kxd1 {[%emt 0:00:03]} Nc6 {[%emt 0:00:20]} 15. Ke2 {[%emt 0:16:55]} Rd8 {[%emt 0:10:56]} 16. f3 {[%emt 0:09:06]} Bf5 {[%emt 0:14:00]} 17. e4 {[%emt 0:08:33]} a6 {[%emt 0:03:47]} 18. Nc7 {[%emt 0:01:51]} Rac8 {[%emt 0:00:06]} 19. Nd5 {[%emt 0:10:54]} Be6 {[%emt 0:00:09]} 20. Rhc1 {[%emt 0:01:51]} Kf8 {[%emt 0:00:54]} 21. Ke3 {[%emt 0:01:33]} Na5 {[%emt 0:05:02]} 22. Ba2 {[%emt 0:01:25]} Rxc3+ {[%emt 0:00:05]} 23. Rxc3 {[%emt 0:00:07]} Nc6 {[%emt 0:00:20]} 24. Rc5 {[%emt 0:05:06]} f6 {[%emt 0:04:03]} 25. b4 {[%emt 0:04:12]} Ne7 {[%emt 0:04:02]} 26. Rc7 {[%emt 0:06:25]} Rd7 {[%emt 0:01:27]} 27. Rxd7 {[%emt 0:01:04]} Bxd7 {[%emt 0:00:10]} 28. Nb6 {[%emt 0:00:25]} Ke8 {[%emt 0:01:52]} 29. Bd5 {[%emt 0:09:34]} Nxd5+ {[%emt 0:03:24]} 30. exd5 {[%emt 0:00:49]} Ke7 {[%emt 0:00:24]} 31. f4 {[%emt 0:01:06]} exf4+ {[%emt 0:01:30]} 32. Kxf4 {[%emt 0:00:04]} Bb5 {[%emt 0:00:22]} 33. Ke3 {[%emt 0:00:53]} Kd6 {[%emt 0:00:37]} 34. Kd4 {[%emt 0:00:09]} h5 {[%emt 0:03:44]} 35. g3 {[%emt 0:01:34]} g6 {[%emt 0:00:43]} 36. a4 {[%emt 0:00:27]} Bf1 {[%emt 0:00:33]} 37. a5 {[%emt 0:02:20]} Bb5 {[%emt 0:00:18]} 38. h4 {[%emt 0:01:51]} Bf1 {[%emt 0:01:44]} 39. Na4 {[%emt 0:00:48]} Bg2 {[%emt 0:00:07]} 40. Nb6 {[%emt 0:01:25]} Bf1 {[%emt 0:00:19]} 41. Nc8+ {[%emt 0:01:12]} Kd7 {[%emt 0:00:10]} 42. Nb6+ {[%emt 0:00:03]} Kd6 {[%emt 0:00:05]} 43. Na4 {[%emt 0:01:08]} Bg2 {[%emt 0:00:05]} 44. Nb6 1/2-1/2

[Event "10th Iberoamericano-ch 2024"]
[Site "Linares"]
[Date "2024.10.01"]
[Round "9.24"]
[White "Domingo Nunez, Alejandro"]
[Black "Goncalves, Samuel Jesus P"]
[Result "1/2-1/2"]
[Annotator "RC"]
[ECO "A15"]
[WhiteElo "2328"]
[BlackElo "2240"]
[PlyCount "95"]
[EventDate "2024.09.25"]
[EventType "swiss"]
[EventCountry "ESP"]
[SourceTitle "playchess.com"]
[Source "ChessBase"]
[SourceQuality "1"]
[TimeControl "5400+30"]

1. Nf3 {[%emt 0:00:01]} Nf6 {[%emt 0:09:07]} 2. c4 {[%emt 0:00:04]} g6 {[%emt 0:00:05]} 3. b3 {[%emt 0:00:04]} Bg7 {[%emt 0:00:46]} 4. Bb2 {[%emt 0:00:04]} O-O {[%emt 0:00:41]} 5. g3 {[%emt 0:00:18]} b6 {[%emt 0:00:17]} 6. Bg2 {[%emt 0:00:11]} Bb7 {[%emt 0:00:04]} 7. O-O {[%emt 0:00:05]} c5 {[%emt 0:00:04]} 8. Re1 {[%emt 0:00:18]} e6 {[%emt 0:01:51]} 9. d4 {[%emt 0:01:59]} d5 {[%emt 0:00:07]} 10. dxc5 {[%emt 0:00:03]} dxc4 {[%emt 0:07:35]} 11. Qc1 {[%emt 0:00:04]} Qc8 {[%emt 0:02:21]} 12. Qxc4 {[%emt 0:00:45]} Nbd7 {[%emt 0:00:07]} 13. cxb6 {[%emt 0:01:22]} Qxc4 {[%emt 0:00:22]} 14. bxc4 {[%emt 0:00:02]} axb6 {[%emt 0:00:31]} 15. Nbd2 {[%emt 0:04:28]} Nc5 {[%emt 0:00:59]} 16. Nb3 {[%emt 0:02:22]} Ra4 {[%emt 0:01:01]} 17. Bd4 {[%emt 0:25:17]} Nfd7 {[%emt 0:07:23]} 18. Nxc5 {[%emt 0:08:29]} bxc5 {[%emt 0:00:17]} 19. Bxg7 {[%emt 0:00:07]} Kxg7 {[%emt 0:00:07]} 20. Red1 {[%emt 0:06:05]} Nb6 {[%emt 0:05:15]} 21. Rdb1 {[%emt 0:03:13]} Bxf3 {[%emt 0:00:42]} 22. Bxf3 {[%emt 0:04:21]} Nxc4 {[%emt 0:00:07]} 23. Bc6 {[%emt 0:05:46]} Ra5 {[%emt 0:00:41]} 24. a4 {[%emt 0:04:52]} Rc8 {[%emt 0:00:51]} 25. Bg2 {[%emt 0:04:54]} Nd6 {[%emt 0:05:08]} 26. Rb6 {[%emt 0:00:44]} Nf5 {[%emt 0:05:52]} 27. Rb5 {[%emt 0:01:04]} Rxb5 {[%emt 0:01:07]} 28. axb5 {[%emt 0:00:01]} Rb8 {[%emt 0:00:12]} 29. Rb1 {[%emt 0:19:31]} Rb6 {[%emt 0:00:06]} 30. e3 {[%emt 0:00:41]} Nd6 {[%emt 0:00:36]} 31. Bc6 {[%emt 0:00:16]} c4 {[%emt 0:00:36]} 32. Kf1 {[%emt 0:04:15]} c3 {[%emt 0:00:06]} 33. Ke2 {[%emt 0:00:31]} Nxb5 {[%emt 0:02:23]} 34. Bxb5 {[%emt 0:00:16]} c2 {[%emt 0:00:06]} 35. Rc1 {[%emt 0:00:03]} Rxb5 {[%emt 0:00:04]} 36. Rxc2 {[%emt 0:00:04]} h5 {[%emt 0:00:28]} 37. h3 {[%emt 0:00:17]} g5 {[%emt 0:00:29]} 38. Rc4 {[%emt 0:00:11]} f5 {[%emt 0:00:29]} 39. Kf3 {[%emt 0:00:23]} Kf6 {[%emt 0:00:40]} 40. Rc8 {[%emt 0:00:11]} Rb2 {[%emt 0:01:21]} 41. Rf8+ {[%emt 0:00:53]} Kg7 {[%emt 0:00:13]} 42. Re8 {[%emt 0:00:18]} Kf6 {[%emt 0:00:08]} 43. Rh8 {[%emt 0:00:07]} g4+ {[%emt 0:00:16]} 44. hxg4 {[%emt 0:01:23]} hxg4+ {[%emt 0:00:01]} 45. Kg2 {[%emt 0:00:02]} Ke5 {[%emt 0:00:17]} 46. Rd8 {[%emt 0:00:05]} Ra2 {[%emt 0:00:37]} 47. Rd4 {[%emt 0:00:06]} Rb2 {[%emt 0:00:27]} 48. Ra4 {[%emt 0:00:14]} 1/2-1/2

[Event "10th Iberoamericano-ch 2024"]
[Site "Linares"]
[Date "2024.10.01"]
[Round "9.25"]
[White "Galvan Cipriani, Viviana"]
[Black "Fernandez Sanchez, Fernando Miguel"]
[Result "0-1"]
[Annotator "RC"]
[ECO "A13"]
[WhiteElo "2138"]
[BlackElo "2399"]
[PlyCount "96"]
[EventDate "2024.09.25"]
[EventType "swiss"]
[EventCountry "ESP"]
[SourceTitle "playchess.com"]
[Source "ChessBase"]
[SourceQuality "1"]
[TimeControl "5400+30"]

1. c4 {[%emt 0:07:39]} e6 {[%emt 0:05:35]} 2. Nf3 {[%emt 0:00:26]} d5 {[%emt 0:00:07]} 3. g3 {[%emt 0:01:20]} Nf6 {[%emt 0:00:18]} 4. Bg2 {[%emt 0:00:09]} d4 {[%emt 0:00:42]} 5. e3 {[%emt 0:00:14]} Nc6 {[%emt 0:02:39]} 6. exd4 {[%emt 0:00:35]} Nxd4 {[%emt 0:00:23]} 7. O-O {[%emt 0:00:09]} Bc5 {[%emt 0:00:38]} 8. Nc3 {[%emt 0:07:41]} O-O {[%emt 0:00:43]} 9. d3 {[%emt 0:01:26]} e5 {[%emt 0:37:05]} 10. h3 {[%emt 0:03:47]} Re8 {[%emt 0:12:13]} 11. Ng5 {[%emt 0:09:27]} h6 {[%emt 0:13:02]} 12. Nge4 {[%emt 0:00:12]} Nxe4 {[%emt 0:00:05]} 13. Nxe4 {[%emt 0:01:58]} Bf8 {[%emt 0:00:03]} 14. Kh2 {[%emt 0:11:07]} f5 {[%emt 0:02:05]} 15. Nc3 {[%emt 0:04:21]} c6 {[%emt 0:00:10]} 16. f4 {[%emt 0:00:43]} exf4 {[%emt 0:00:39]} 17. Bxf4 {[%emt 0:00:06]} Be6 {[%emt 0:00:16]} 18. Qd2 {[%emt 0:00:42]} Qd7 {[%emt 0:00:20]} 19. Rad1 {[%emt 0:00:31]} Rad8 {[%emt 0:00:47]} 20. Qf2 {[%emt 0:01:16]} Bf7 {[%emt 0:02:52]} 21. Be3 {[%emt 0:03:06]} g6 {[%emt 0:03:03]} 22. Qd2 {[%emt 0:07:48]} Kh7 {[%emt 0:01:11]} 23. Rf4 {[%emt 0:11:03]} Bg7 {[%emt 0:05:16]} 24. Rh4 {[%emt 0:06:27]} Rxe3 {[%emt 0:03:34]} 25. Qxe3 {[%emt 0:00:07]} Re8 {[%emt 0:00:11]} 26. Qd2 {[%emt 0:02:52]} Ne6 {[%emt 0:00:21]} 27. Rf4 {[%emt 0:00:30]} Nxf4 {[%emt 0:00:12]} 28. Qxf4 {[%emt 0:00:04]} Be5 {[%emt 0:05:38]} 29. Qf3 {[%emt 0:00:09]} Bd4 {[%emt 0:00:16]} 30. Qf1 {[%emt 0:01:28]} Re3 {[%emt 0:00:13]} 31. Re1 {[%emt 0:00:34]} Rxd3 {[%emt 0:01:09]} 32. Qxd3 {[%emt 0:03:45]} Bg1+ {[%emt 0:00:07]} 33. Kxg1 {[%emt 0:00:03]} Qxd3 {[%emt 0:00:05]} 34. Re7 {[%emt 0:00:13]} Kg8 {[%emt 0:00:07]} 35. Kh2 {[%emt 0:01:17]} b6 {[%emt 0:03:12]} 36. c5 {[%emt 0:04:51]} Qd2 {[%emt 0:01:59]} 37. Re2 {[%emt 0:03:02]} Qd7 {[%emt 0:00:10]} 38. Re5 {[%emt 0:04:18]} Kf8 {[%emt 0:00:19]} 39. cxb6 {[%emt 0:00:22]} axb6 {[%emt 0:00:02]} 40. a4 {[%emt 0:00:09]} Qd4 {[%emt 0:00:15]} 41. Re1 {[%emt 0:00:30]} Bb3 {[%emt 0:00:34]} 42. h4 {[%emt 0:02:06]} Kf7 {[%emt 0:00:12]} 43. Kh3 {[%emt 0:00:57]} Bxa4 {[%emt 0:00:31]} 44. Nxa4 {[%emt 0:00:28]} Qxa4 {[%emt 0:00:04]} 45. Rc1 {[%emt 0:00:26]} Qg4+ {[%emt 0:00:25]} 46. Kh2 {[%emt 0:00:05]} f4 {[%emt 0:00:07]} 47. Rxc6 {[%emt 0:01:06]} fxg3+ {[%emt 0:00:22]} 48. Kg1 {[%emt 0:00:08]} Qd4+ {[%emt 0:00:08]} 0-1

[Event "10th Iberoamericano-ch 2024"]
[Site "Linares"]
[Date "2024.10.01"]
[Round "9.26"]
[White "Panelo, Marcelo"]
[Black "Diaz Mino, Daniel"]
[Result "1/2-1/2"]
[Annotator "RC"]
[ECO "B56"]
[WhiteElo "2344"]
[BlackElo "2229"]
[PlyCount "217"]
[EventDate "2024.09.25"]
[EventType "swiss"]
[EventCountry "ESP"]
[SourceTitle "playchess.com"]
[Source "ChessBase"]
[SourceQuality "1"]
[TimeControl "5400+30"]

1. e4 {[%emt 0:00:02]} c5 {[%emt 0:01:34]} 2. Nf3 {[%emt 0:00:06]} d6 {[%emt 0:00:54]} 3. d4 {[%emt 0:00:04]} Nf6 {[%emt 0:00:33]} 4. Nc3 {[%emt 0:01:13]} cxd4 {[%emt 0:00:15]} 5. Nxd4 {[%emt 0:01:33]} e5 {[%emt 0:00:06]} 6. Bb5+ {[%emt 0:04:07]} Nbd7 {[%emt 0:00:14]} 7. Nf5 {[%emt 0:00:33]} a6 {[%emt 0:00:05]} 8. Bxd7+ {[%emt 0:04:33]} Qxd7 {[%emt 0:00:23]} 9. Ne3 {[%emt 0:01:49]} Be7 {[%emt 0:00:35]} 10. a4 {[%emt 0:02:30]} O-O {[%emt 0:00:50]} 11. O-O {[%emt 0:00:15]} Qc6 {[%emt 0:04:48]} 12. Qf3 {[%emt 0:00:29]} Be6 {[%emt 0:12:41]} 13. a5 {[%emt 0:03:29]} Bd8 {[%emt 0:29:33]} 14. Rd1 {[%emt 0:05:23]} b5 {[%emt 0:01:21]} 15. axb6 {[%emt 0:00:25]} Bxb6 {[%emt 0:00:06]} 16. Nf5 {[%emt 0:00:26]} Bxf5 {[%emt 0:00:40]} 17. Qxf5 {[%emt 0:00:06]} Bd4 {[%emt 0:11:13]} 18. Bg5 {[%emt 0:01:16]} Qc8 {[%emt 0:00:32]} 19. Qf3 {[%emt 0:07:54]} Qg4 {[%emt 0:06:08]} 20. Bxf6 {[%emt 0:02:22]} Qxf3 {[%emt 0:00:20]} 21. gxf3 {[%emt 0:00:07]} gxf6 {[%emt 0:00:27]} 22. Ne2 {[%emt 0:09:39]} Bxb2 {[%emt 0:09:03]} 23. Ra2 {[%emt 0:00:11]} Rfb8 {[%emt 0:00:05]} 24. Rd2 {[%emt 0:19:02]} Bd4 {[%emt 0:05:10]} 25. Nxd4 {[%emt 0:00:05]} exd4 {[%emt 0:00:04]} 26. Rxd4 {[%emt 0:00:03]} Rb6 {[%emt 0:00:15]} 27. Rc4 {[%emt 0:03:13]} a5 {[%emt 0:01:26]} 28. Kg2 {[%emt 0:00:47]} Kg7 {[%emt 0:00:30]} 29. Kg3 {[%emt 0:00:06]} Rb5 {[%emt 0:04:35]} 30. Rd4 {[%emt 0:01:03]} Ra6 {[%emt 0:00:15]} 31. Kf4 {[%emt 0:01:27]} Rh5 {[%emt 0:00:43]} 32. h3 {[%emt 0:23:13]} Rxh3 {[%emt 0:00:38]} 33. Rd5 {[%emt 0:00:04]} a4 {[%emt 0:02:55]} 34. Rd4 {[%emt 0:00:08]} Rc6 {[%emt 0:02:54]} 35. Rdxa4 {[%emt 0:00:53]} Rc3 {[%emt 0:00:18]} 36. e5 {[%emt 0:01:23]} fxe5+ {[%emt 0:03:25]} 37. Ke4 {[%emt 0:00:00]} Rhxf3 {[%emt 0:00:52]} 38. Kd5 {[%emt 0:00:05]} Rxf2 {[%emt 0:00:30]} 39. Kxd6 {[%emt 0:00:05]} Rfxc2 {[%emt 0:01:11]} 40. Rxc2 {[%emt 0:00:03]} Rxc2 {[%emt 0:00:06]} 41. Kxe5 {[%emt 0:00:02]} Rf2 {[%emt 0:00:57]} 42. Rg4+ {[%emt 0:00:19]} Kh6 {[%emt 0:01:44]} 43. Rg1 {[%emt 0:00:05]} Rf3 {[%emt 0:00:33]} 44. Ke4 {[%emt 0:00:41]} Rf6 {[%emt 0:00:13]} 45. Ke5 {[%emt 0:01:10]} Rg6 {[%emt 0:00:05]} 46. Rh1+ {[%emt 0:00:26]} Kg7 {[%emt 0:00:01]} 47. Kf5 {[%emt 0:01:07]} h6 {[%emt 0:00:02]} 48. Rh5 {[%emt 0:01:17]} f6 {[%emt 0:00:14]} 49. Rh1 {[%emt 0:00:56]} Rg5+ {[%emt 0:00:05]} 50. Kf4 {[%emt 0:00:03]} Kg6 {[%emt 0:00:45]} 51. Ra1 {[%emt 0:01:56]} h5 {[%emt 0:00:03]} 52. Kf3 {[%emt 0:02:51]} Rg4 {[%emt 0:00:18]} 53. Ra8 {[%emt 0:03:29]} Rb4 {[%emt 0:00:47]} 54. Kg3 {[%emt 0:00:24]} Kg5 {[%emt 0:00:30]} 55. Rg8+ {[%emt 0:00:11]} Kf5 {[%emt 0:00:05]} 56. Rh8 {[%emt 0:01:43]} Rb3+ {[%emt 0:01:24]} 57. Kg2 {[%emt 0:00:36]} Kg4 {[%emt 0:00:10]} 58. Rg8+ {[%emt 0:00:05]} Kf4 {[%emt 0:00:25]} 59. Rh8 {[%emt 0:00:32]} Rg3+ {[%emt 0:01:25]} 60. Kf2 {[%emt 0:00:14]} Rg5 {[%emt 0:00:10]} 61. Rh6 {[%emt 0:00:47]} f5 {[%emt 0:00:25]} 62. Ra6 {[%emt 0:01:31]} Kg4 {[%emt 0:00:01]} 63. Ra1 {[%emt 0:00:28]} h4 {[%emt 0:01:16]} 64. Rg1+ {[%emt 0:00:44]} Kh5 {[%emt 0:00:10]} 65. Rh1 {[%emt 0:00:39]} Rg3 {[%emt 0:00:10]} 66. Ra1 {[%emt 0:00:04]} Kg5 {[%emt 0:01:17]} 67. Ra8 {[%emt 0:00:11]} Rb3 {[%emt 0:00:16]} 68. Rh8 {[%emt 0:00:33]} Kg4 {[%emt 0:00:09]} 69. Rg8+ {[%emt 0:00:19]} Kf4 {[%emt 0:00:11]} 70. Ra8 {[%emt 0:00:33]} Rb2+ {[%emt 0:00:13]} 71. Kg1 {[%emt 0:00:05]} h3 {[%emt 0:01:36]} 72. Rh8 {[%emt 0:00:41]} Kg3 {[%emt 0:01:38]} 73. Rg8+ {[%emt 0:00:06]} Kf3 {[%emt 0:00:11]} 74. Rh8 {[%emt 0:01:23]} Rg2+ {[%emt 0:00:49]} 75. Kh1 {[%emt 0:00:55]} Rg3 {[%emt 0:00:13]} 76. Ra8 {[%emt 0:00:31]} f4 {[%emt 0:00:12]} 77. Kh2 {[%emt 0:00:14]} Kg4 {[%emt 0:01:21]} 78. Rg8+ {[%emt 0:00:10]} Kf3 {[%emt 0:00:33]} 79. Ra8 {[%emt 0:00:04]} Ke4 {[%emt 0:00:36]} 80. Re8+ {[%emt 0:01:24]} Kd3 {[%emt 0:00:01]} 81. Ra8 {[%emt 0:00:28]} Re3 {[%emt 0:00:23]} 82. Ra4 {[%emt 0:00:25]} Rf3 {[%emt 0:01:00]} 83. Rb4 {[%emt 0:00:24]} Ke3 {[%emt 0:00:26]} 84. Ra4 {[%emt 0:00:07]} Rg3 {[%emt 0:00:42]} 85. Ra3+ {[%emt 0:00:07]} Kf2 {[%emt 0:00:08]} 86. Ra2+ {[%emt 0:00:03]} Kf3 {[%emt 0:00:16]} 87. Ra8 {[%emt 0:00:43]} Rg2+ {[%emt 0:00:29]} 88. Kxh3 {[%emt 0:00:16]} Re2 {[%emt 0:00:02]} 89. Rf8 {[%emt 0:00:31]} Re4 {[%emt 0:00:33]} 90. Ra8 {[%emt 0:01:21]} Kf2 {[%emt 0:00:29]} 91. Ra2+ {[%emt 0:01:04]} Re2 {[%emt 0:00:14]} 92. Ra1 {[%emt 0:00:31]} f3 {[%emt 0:00:12]} 93. Ra8 {[%emt 0:00:40]} Rd2 {[%emt 0:01:32]} 94. Ra1 {[%emt 0:00:26]} Ke3 {[%emt 0:01:03]} 95. Ra8 {[%emt 0:00:38]} Rd7 {[%emt 0:00:32]} 96. Ra3+ {[%emt 0:00:32]} Rd3 {[%emt 0:00:05]} 97. Ra1 {[%emt 0:00:29]} Rd7 {[%emt 0:00:46]} 98. Ra3+ {[%emt 0:00:22]} Ke2 {[%emt 0:00:03]} 99. Ra2+ {[%emt 0:00:16]} Rd2 {[%emt 0:00:08]} 100. Ra1 {[%emt 0:00:06]} Kf2 {[%emt 0:01:15]} 101. Rb1 {[%emt 0:00:37]} Re2 {[%emt 0:00:06]} 102. Ra1 {[%emt 0:00:06]} Re8 {[%emt 0:01:07]} 103. Ra2+ {[%emt 0:00:16]} Ke3 {[%emt 0:00:30]} 104. Ra3+ {[%emt 0:00:59]} Kf4 {[%emt 0:00:02]} 105. Ra4+ {[%emt 0:00:26]} Re4 {[%emt 0:00:09]} 106. Ra8 {[%emt 0:00:37]} Ke3 {[%emt 0:00:57]} 107. Kg3 {[%emt 0:00:56]} Re7 {[%emt 0:00:35]} 108. Ra3+ {[%emt 0:00:11]} Ke2 {[%emt 0:00:03]} 109. Ra2+ {[%emt 0:00:09]} 1/2-1/2